fUST/lending_fUST_20260428
["ID","MTS","AMOUNT","RATE_DAILY","PERIOD"]
[421298478,1777391440505,-866.03886541,0.000158,2]
[421298479,1777391440515,-160.0,0.00015863,7]
[421298480,1777391440524,-30000.0,0.00015863,2]
[421298481,1777391440533,-28827.75924496,0.00015863,7]
[421298482,1777391440542,-1561.0,0.0001589,2]
[421298483,1777391440552,-2661.66904878,0.000159,2]
[421298484,1777391440561,-501.01398283,0.000159,2]
[421298485,1777391440570,-160.0,0.00015987,6]
[421298486,1777391440580,-310.69288713,0.00015987,5]
[421298487,1777391440589,-160.0,0.00015987,5]
[421298488,1777391440599,-19033.81822935,0.00016,7]
[421298489,1777391440608,-334758.69872759,0.00016,2]
[421298490,1777391440618,-1008.0,0.00016,2]
[421298491,1777391440628,-218.44814572,0.00016,2]
[421298492,1777391440637,-716.58660461,0.00016,2]
[421298493,1777391440647,-3000.0,0.00016,2]
[421298494,1777391440657,-2273.51973811,0.00016,2]
[421298495,1777391440666,-10367.48053488,0.00016,2]
[421298496,1777391440676,-866.03886541,0.00016,2]
[421298497,1777391440685,-3000.0,0.0001601,2]
[421298498,1777391440695,-3000.0,0.0001602,2]
[421298499,1777391440704,-3000.0,0.0001603,2]
[421298500,1777391440714,-3000.0,0.0001604,2]
[421298501,1777391440723,-3000.0,0.0001605,2]
[421298502,1777391440732,-1002.02753,0.0001606,2]
[421298503,1777391440741,-5000.0,0.0001606,2]
[421298504,1777391440750,-3000.0,0.0001606,2]
[421298505,1777391440759,-156.0,0.00016064,2]
[421298506,1777391440769,-3000.0,0.0001607,2]
[421298507,1777391440778,-500.0,0.00016073,2]
[421298508,1777391440787,-500.0,0.00016073,2]
[421298509,1777391440797,-500.0,0.00016073,2]
[421298510,1777391440806,-267.90783046,0.00016073,2]
[421298511,1777391440816,-500.0,0.00016073,2]
[421298512,1777391440826,-500.0,0.00016073,2]
[421298513,1777391440835,-150.12251963,0.00016073,2]
[421298514,1777391440846,-520.60051566,0.00016073,2]
[421298515,1777391440855,-500.0,0.00016073,2]
[421298516,1777391440865,-500.0,0.00016073,2]
[421298517,1777391440875,-500.0,0.00016073,2]
[421298518,1777391440884,-500.0,0.00016073,2]
[421298519,1777391440894,-500.0,0.00016073,2]
[421298520,1777391440904,-500.0,0.00016073,2]
[421298521,1777391440913,-500.0,0.00016073,2]
[421298522,1777391440922,-500.19730108,0.00016073,2]
[421298523,1777391440932,-501.78987475,0.00016073,2]
[421298524,1777391440942,-500.0,0.00016073,2]
[421298525,1777391440952,-500.0,0.00016073,2]
[421298526,1777391440962,-500.0,0.00016073,2]
[421298527,1777391440972,-500.0,0.00016073,2]
[421298528,1777391440981,-235.25032416,0.00016073,2]
[421298529,1777391440991,-500.0,0.00016073,2]
[421298530,1777391441001,-162.24204964,0.00016073,2]
[421298531,1777391441010,-500.0,0.00016073,2]
[421298532,1777391441019,-216.07809586,0.00016073,2]
[421298533,1777391441028,-150.0,0.00016073,2]
[421298534,1777391441038,-500.0,0.00016073,2]
[421298535,1777391441048,-500.0,0.00016073,2]
[421298536,1777391441057,-500.0,0.00016073,2]
[421298537,1777391441067,-500.0,0.00016073,2]
[421298538,1777391441076,-501.20434971,0.00016073,2]
[421298539,1777391441086,-3000.0,0.0001608,2]
[421298540,1777391441095,-3000.0,0.0001609,2]
[421298541,1777391441105,-90346.19250752,0.000161,2]
[421298542,1777391441114,-278454.96626491,0.000161,2]
[421298543,1777391441125,-3000.0,0.000161,2]
[421298544,1777391441134,-10367.48053488,0.000161,2]
[421298545,1777391441143,-866.03886541,0.000161,2]
[421298546,1777391441153,-3000.0,0.0001611,2]
[421298547,1777391441162,-3000.0,0.0001612,2]
[421298548,1777391441171,-3000.0,0.0001613,2]
[421298549,1777391441180,-3000.0,0.0001614,2]
[421298550,1777391441189,-3000.0,0.0001615,2]
[421298551,1777391441198,-3000.0,0.0001616,2]
[421298552,1777391441207,-1561.0,0.00016164,2]
[421298553,1777391441217,-3000.0,0.0001617,2]
[421298554,1777391441226,-5219.894484,0.0001618,2]
[421298555,1777391441236,-2273.51973811,0.000162,2]
[421298556,1777391441245,-5895.2468476,0.00016201,2]
[421298557,1777391441255,-2273.51973811,0.000163,2]
[421298558,1777391441264,-10367.48053488,0.000163,2]
[421298559,1777391441273,-866.03886541,0.000163,2]
[421298560,1777391441283,-166.41868021,0.00016301,120]
[421298561,1777391441292,-10367.48053488,0.000164,2]
[421298562,1777391441302,-464.0,0.00016438,2]
[421298563,1777391441311,-609.592729,0.00016438,2]
[421298564,1777391441320,-500.0,0.00016438,2]
[421298565,1777391441329,-500.0,0.00016438,2]
[421298566,1777391441339,-500.0,0.00016438,2]
[421298567,1777391441348,-500.0,0.00016438,2]
[421298568,1777391441358,-500.0,0.00016438,2]
[421298569,1777391441368,-500.0,0.00016438,2]
[421298570,1777391441378,-500.0,0.00016438,2]
[421298571,1777391441388,-386.87542084,0.00016438,2]
[421298572,1777391441397,-1561.0,0.00016438,2]
[421298573,1777391441408,-299.0,0.00016438,2]
[421298574,1777391441417,-299.0,0.00016438,2]
[421298575,1777391441427,-299.0,0.00016438,2]
[421298576,1777391441436,-299.0,0.00016438,2]
[421298577,1777391441446,-299.0,0.00016438,2]
[421298578,1777391441456,-299.0,0.00016438,2]
[421298579,1777391441465,-299.0,0.00016438,2]
[421298580,1777391441475,-299.0,0.00016438,2]
[421298581,1777391441484,-299.0,0.00016438,2]
[421298582,1777391441494,-299.0,0.00016438,2]
[421298583,1777391441503,-299.0,0.00016438,2]
[421298584,1777391441512,-299.0,0.00016438,2]
[421298585,1777391441522,-299.0,0.00016438,2]
[421298586,1777391441531,-299.0,0.00016438,2]
[421298587,1777391441540,-299.0,0.00016438,2]
[421298588,1777391441550,-299.0,0.00016438,2]
[421298589,1777391441559,-299.0,0.00016438,2]
[421298590,1777391441568,-299.0,0.00016438,2]
[421298591,1777391441578,-299.0,0.00016438,2]
[421298592,1777391441587,-299.0,0.00016438,2]
[421298593,1777391441597,-299.0,0.00016438,2]
[421298594,1777391441606,-299.0,0.00016438,2]
[421298595,1777391441616,-299.0,0.00016438,2]
[421298596,1777391441627,-299.0,0.00016438,2]
[421298597,1777391441636,-299.0,0.00016438,2]
[421298598,1777391441645,-299.0,0.00016438,2]
[421298599,1777391441656,-299.0,0.00016438,2]
[421298600,1777391441665,-299.0,0.00016438,2]
[421298601,1777391441675,-299.0,0.00016438,2]
[421298602,1777391441684,-151.0,0.00016438,2]
[421298603,1777391441695,-151.0,0.00016438,2]
[421298604,1777391441705,-151.0,0.00016438,2]
[421298605,1777391441715,-193.03099,0.00016438,2]
[421298606,1777391441724,-209.925091,0.00016438,2]
[421298607,1777391441734,-209.925091,0.00016438,2]
[421298608,1777391441744,-209.925091,0.00016438,2]
[421298609,1777391441754,-209.925091,0.00016438,2]
[421298610,1777391441763,-209.925091,0.00016438,2]
[421298611,1777391441773,-209.925091,0.00016438,2]
[421298612,1777391441782,-209.925091,0.00016438,2]
[421298613,1777391441791,-209.925091,0.00016438,2]
[421298614,1777391441801,-209.925091,0.00016438,2]
[421298615,1777391441811,-209.925091,0.00016438,2]
[421298616,1777391441820,-209.925091,0.00016438,2]
[421298617,1777391441829,-209.925091,0.00016438,2]
[421298618,1777391441839,-209.925091,0.00016438,2]
[421298619,1777391441848,-209.925091,0.00016438,2]
[421298620,1777391441858,-209.925091,0.00016438,2]
[421298621,1777391441867,-209.925091,0.00016438,2]
[421298622,1777391441876,-209.925091,0.00016438,2]
[421298623,1777391441886,-209.925091,0.00016438,2]
[421298624,1777391441895,-209.925091,0.00016438,2]
[421298625,1777391441904,-209.92509778,0.00016438,2]
[421298626,1777391441914,-260.0,0.00016438,2]
[421298627,1777391441923,-151.0,0.00016438,2]
[421298628,1777391441933,-166.613,0.00016438,2]
[421298629,1777391441942,-153.825012,0.00016438,2]
[421298630,1777391441951,-353.189712,0.00016438,2]
[421298631,1777391441961,-353.189712,0.00016438,2]
[421298632,1777391441971,-353.189712,0.00016438,2]
[421298633,1777391441980,-353.189712,0.00016438,2]
[421298634,1777391441989,-353.189712,0.00016438,2]
[421298635,1777391441999,-353.189712,0.00016438,2]
[421298636,1777391442008,-353.189712,0.00016438,2]
[421298637,1777391442017,-353.189712,0.00016438,2]
[421298638,1777391442028,-353.189712,0.00016438,2]
[421298639,1777391442037,-353.189712,0.00016438,2]
[421298640,1777391442046,-353.189712,0.00016438,2]
[421298641,1777391442055,-353.189712,0.00016438,2]
[421298642,1777391442065,-353.189712,0.00016438,2]
[421298643,1777391442075,-353.189712,0.00016438,2]
[421298644,1777391442084,-353.189712,0.00016438,2]
[421298645,1777391442094,-353.189712,0.00016438,2]
[421298646,1777391442103,-353.189712,0.00016438,2]
[421298647,1777391442113,-353.189712,0.00016438,2]
[421298648,1777391442123,-353.189712,0.00016438,2]
[421298649,1777391442132,-353.18972,0.00016438,2]
[421298650,1777391442141,-151.0,0.00016438,2]
[421298651,1777391442150,-266.159325,0.00016438,2]
[421298652,1777391442160,-150.0,0.00016438,2]
[421298653,1777391442169,-151.0,0.00016438,2]
[421298654,1777391442178,-151.0,0.00016438,2]
[421298655,1777391442188,-151.0,0.00016438,2]
[421298656,1777391442197,-323.173515,0.00016438,2]
[421298657,1777391442206,-323.173515,0.00016438,2]
[421298658,1777391442216,-323.173515,0.00016438,2]
[421298659,1777391442225,-323.173515,0.00016438,2]
[421298660,1777391442234,-323.173515,0.00016438,2]
[421298661,1777391442243,-323.173515,0.00016438,2]
[421298662,1777391442252,-323.173515,0.00016438,2]
[421298663,1777391442262,-323.173515,0.00016438,2]
[421298664,1777391442271,-323.173515,0.00016438,2]
[421298665,1777391442280,-323.173515,0.00016438,2]
[421298666,1777391442289,-323.173515,0.00016438,2]
[421298667,1777391442298,-323.173515,0.00016438,2]
[421298668,1777391442307,-323.173515,0.00016438,2]
[421298669,1777391442316,-323.173515,0.00016438,2]
[421298670,1777391442325,-323.173515,0.00016438,2]
[421298671,1777391442334,-323.173515,0.00016438,2]
[421298672,1777391442343,-323.173515,0.00016438,2]
[421298673,1777391442352,-323.173515,0.00016438,2]
[421298674,1777391442362,-323.173515,0.00016438,2]
[421298675,1777391442371,-323.173513,0.00016438,2]
[421298676,1777391442381,-221.599884,0.00016438,2]
[421298677,1777391442390,-221.599884,0.00016438,2]
[421298678,1777391442399,-221.599884,0.00016438,2]
[421298679,1777391442410,-221.599884,0.00016438,2]
[421298680,1777391442420,-221.599884,0.00016438,2]
[421298681,1777391442430,-221.599884,0.00016438,2]
[421298682,1777391442439,-221.599884,0.00016438,2]
[421298683,1777391442449,-221.599884,0.00016438,2]
[421298684,1777391442458,-221.599884,0.00016438,2]
[421298685,1777391442469,-221.599884,0.00016438,2]
[421298686,1777391442478,-221.599884,0.00016438,2]
[421298687,1777391442487,-221.599884,0.00016438,2]
[421298688,1777391442496,-221.599884,0.00016438,2]
[421298690,1777391442506,-221.599884,0.00016438,2]
[421298692,1777391442515,-221.599884,0.00016438,2]
[421298693,1777391442524,-221.599884,0.00016438,2]
[421298694,1777391442533,-221.599884,0.00016438,2]
[421298695,1777391442544,-221.599884,0.00016438,2]
[421298696,1777391442553,-221.599884,0.00016438,2]
[421298697,1777391442563,-221.599879,0.00016438,2]
[421298698,1777391442574,-151.0,0.00016438,2]
[421298699,1777391442583,-223.714501,0.00016438,2]
[421298700,1777391442592,-151.0,0.00016438,2]
[421298701,1777391442601,-151.0,0.00016438,2]
[421298703,1777391442611,-151.0,0.00016438,2]
[421298704,1777391442621,-151.0,0.00016438,2]
[421298705,1777391442630,-151.0,0.00016438,2]
[421298706,1777391442639,-151.0,0.00016438,2]
[421298707,1777391442648,-151.0,0.00016438,2]
[421298708,1777391442658,-189.068753,0.00016438,2]
[421298709,1777391442667,-151.0,0.00016438,2]
[421298710,1777391442677,-151.0,0.00016438,2]
[421298711,1777391442686,-151.0,0.00016438,2]
[421298712,1777391442695,-151.0,0.00016438,2]
[421298713,1777391442704,-151.0,0.00016438,2]
[421298714,1777391442714,-151.0,0.00016438,2]
[421298715,1777391442723,-151.0,0.00016438,2]
[421298716,1777391442732,-151.0,0.00016438,2]
[421298717,1777391442741,-151.0,0.00016438,2]
[421298718,1777391442751,-151.0,0.00016438,2]
[421298719,1777391442760,-151.0,0.00016438,2]
[421298720,1777391442769,-218.2,0.00016438,2]
[421298721,1777391442778,-151.0,0.00016438,2]
[421298722,1777391442788,-151.0,0.00016438,2]
[421298723,1777391442797,-151.0,0.00016438,2]
[421298724,1777391442806,-220.423205,0.00016438,2]
[421298725,1777391442815,-151.0,0.00016438,2]
[421298726,1777391442825,-151.0,0.00016438,2]
[421298727,1777391442834,-265.665663,0.00016438,2]
[421298728,1777391442843,-151.0,0.00016438,2]
[421298729,1777391442853,-151.0,0.00016438,2]
[421298730,1777391442862,-151.0,0.00016438,2]
[421298731,1777391442872,-151.0,0.00016438,2]
[421298732,1777391442881,-151.0,0.00016438,2]
[421298733,1777391442890,-151.0,0.00016438,2]
[421298734,1777391442900,-151.0,0.00016438,2]
[421298735,1777391442909,-281.58422761,0.00016438,2]
[421298736,1777391442919,-500.0,0.00016438,2]
[421298737,1777391442929,-500.0,0.00016438,2]
[421298738,1777391442938,-500.0,0.00016438,2]
[421298739,1777391442947,-500.0,0.00016438,2]
[421298740,1777391442957,-500.0,0.00016438,2]
[421298741,1777391442966,-500.0,0.00016438,2]
[421298742,1777391442975,-500.0,0.00016438,2]
[421298743,1777391442985,-500.0,0.00016438,2]
[421298744,1777391442994,-500.0,0.00016438,2]
[421298745,1777391443004,-500.0,0.00016438,2]
[421298746,1777391443013,-500.0,0.00016438,2]
[421298747,1777391443023,-500.0,0.00016438,2]
[421298748,1777391443035,-500.0,0.00016438,2]
[421298750,1777391443044,-151.0,0.00016438,2]
[421298752,1777391443054,-500.0,0.00016438,2]
[421298754,1777391443063,-151.0,0.00016438,2]
[421298756,1777391443072,-500.0,0.00016438,2]
[421298758,1777391443081,-152.24942,0.00016438,2]
[421298759,1777391443091,-500.0,0.00016438,2]
[421298761,1777391443100,-500.0,0.00016438,2]
[421298762,1777391443109,-500.0,0.00016438,2]
[421298763,1777391443118,-500.0,0.00016438,2]
[421298764,1777391443127,-500.0,0.00016438,2]
[421298765,1777391443136,-151.0,0.00016438,2]
[421298766,1777391443145,-151.0,0.00016438,2]
[421298767,1777391443154,-151.0,0.00016438,2]
[421298768,1777391443163,-151.0,0.00016438,2]
[421298769,1777391443172,-151.0,0.00016438,2]
[421298770,1777391443182,-151.0,0.00016438,2]
[421298771,1777391443191,-151.0,0.00016438,2]
[421298772,1777391443200,-151.0,0.00016438,2]
[421298773,1777391443209,-151.0,0.00016438,2]
[421298774,1777391443219,-151.0,0.00016438,2]
[421298775,1777391443228,-151.0,0.00016438,2]
[421298776,1777391443237,-151.0,0.00016438,2]
[421298777,1777391443247,-151.0,0.00016438,2]
[421298778,1777391443256,-275.976218,0.00016438,2]
[421298779,1777391443266,-164.657495,0.00016438,2]
[421298780,1777391443275,-151.0,0.00016438,2]
[421298781,1777391443285,-151.0,0.00016438,2]
[421298782,1777391443294,-151.0,0.00016438,2]
[421298783,1777391443303,-151.0,0.00016438,2]
[421298784,1777391443312,-151.0,0.00016438,2]
[421298785,1777391443322,-164.597724,0.00016438,2]
[421298786,1777391443331,-287.961218,0.00016438,2]
[421298787,1777391443340,-287.961218,0.00016438,2]
[421298788,1777391443350,-287.961218,0.00016438,2]
[421298789,1777391443359,-287.961218,0.00016438,2]
[421298790,1777391443369,-287.961218,0.00016438,2]
[421298791,1777391443379,-287.961218,0.00016438,2]
[421298792,1777391443388,-287.961218,0.00016438,2]
[421298793,1777391443398,-287.961218,0.00016438,2]
[421298794,1777391443408,-287.961218,0.00016438,2]
[421298795,1777391443417,-287.961218,0.00016438,2]
[421298796,1777391443426,-287.961218,0.00016438,2]
[421298797,1777391443436,-287.961218,0.00016438,2]
[421298798,1777391443446,-287.961218,0.00016438,2]
[421298799,1777391443455,-287.961218,0.00016438,2]
[421298800,1777391443464,-287.961218,0.00016438,2]
[421298801,1777391443473,-287.961218,0.00016438,2]
[421298802,1777391443483,-287.961218,0.00016438,2]
[421298803,1777391443492,-287.961218,0.00016438,2]
[421298804,1777391443501,-287.961218,0.00016438,2]
[421298805,1777391443511,-287.961216,0.00016438,2]
[421298806,1777391443520,-151.0,0.00016438,2]
[421298807,1777391443529,-151.0,0.00016438,2]
[421298808,1777391443538,-151.0,0.00016438,2]
[421298809,1777391443548,-151.0,0.00016438,2]
[421298810,1777391443557,-151.0,0.00016438,2]
[421298811,1777391443566,-151.0,0.00016438,2]
[421298812,1777391443575,-151.0,0.00016438,2]
[421298814,1777391443585,-151.0,0.00016438,2]
[421298816,1777391443595,-151.0,0.00016438,2]
[421298817,1777391443604,-151.0,0.00016438,2]
[421298818,1777391443614,-287.919582,0.00016438,2]
[421298819,1777391443625,-151.0,0.00016438,2]
[421298820,1777391443634,-154.637272,0.00016438,2]
[421298821,1777391443643,-250.0,0.00016441,2]
[421298822,1777391443652,-350.0,0.00016444,2]
[421298823,1777391443662,-260.0,0.00016446,2]
[421298824,1777391443671,-450.0,0.00016447,2]
[421298825,1777391443680,-550.0,0.00016449,2]
[421298826,1777391443690,-752.84514344,0.00016452,2]
[421298827,1777391443699,-1046.69349752,0.00016498,4]
[421298828,1777391443708,-1829.23016819,0.00016498,4]
[421298829,1777391443718,-260.0,0.00016498,2]
[421298830,1777391443727,-155.0,0.00016499,2]
[421298831,1777391443736,-2273.51973811,0.000165,2]
[421298832,1777391443746,-168.31142056,0.00016583,60]
[421298833,1777391443756,-2273.51973811,0.000166,2]
[421298834,1777391443765,-10367.48053488,0.000166,2]
[421298835,1777391443774,-1097.11583882,0.00016621,2]
[421298836,1777391443785,-1000.0,0.00016621,2]
[421298838,1777391443795,-1000.0,0.00016621,2]
[421298840,1777391443804,-1000.0,0.00016621,2]
[421298841,1777391443814,-1000.0,0.00016621,2]
[421298842,1777391443823,-1000.0,0.00016621,2]
[421298843,1777391443833,-1000.0,0.00016621,2]
[421298844,1777391443843,-1000.0,0.00016621,2]
[421298845,1777391443853,-1000.0,0.00016621,2]
[421298846,1777391443863,-1000.0,0.00016621,2]
[421298847,1777391443873,-1000.0,0.00016621,2]
[421298848,1777391443882,-1000.0,0.00016621,2]
[421298849,1777391443892,-1000.0,0.00016621,2]
[421298850,1777391443901,-1137.34261822,0.00016621,2]
[421298851,1777391443910,-1000.0,0.00016621,2]
[421298852,1777391443923,-1000.0,0.00016621,2]
[421298853,1777391443933,-250.0,0.00016621,2]
[421298854,1777391443942,-1000.0,0.00016621,2]
[421298855,1777391443951,-1000.0,0.00016621,2]
[421298856,1777391443961,-1000.0,0.00016621,2]
[421298857,1777391443971,-1000.0,0.00016621,2]
[421298858,1777391443981,-168.72055831,0.00016677,30]
[421298859,1777391443990,-308.68350414,0.00016688,60]
[421298860,1777391443999,-212.54927435,0.00016704,60]
[421298861,1777391444009,-464.0,0.00016712,2]
[421298862,1777391444018,-1561.0,0.00016712,2]
[421298863,1777391444028,-720.0,0.00016726,2]
[421298864,1777391444038,-201.87,0.000168,14]
[421298865,1777391444048,-290.46,0.000168,14]
[421298866,1777391444057,-2273.51973811,0.000168,2]
[421298867,1777391444066,-10367.48053488,0.000168,2]
[421298868,1777391444076,-276.0,0.00016806,2]
[421298869,1777391444085,-260.0,0.00016889,2]
[421298870,1777391444095,-10367.48053488,0.000169,2]
[421298871,1777391444104,-5964.86190972,0.00016902,2]
[421298872,1777391444113,-151.0,0.00016912,2]
[421298873,1777391444124,-151.0,0.00016912,2]
[421298874,1777391444133,-164.05073521,0.00016917,60]
[421298875,1777391444142,-2661.66904877,0.00016932,2]
[421298876,1777391444151,-158.43534142,0.00016973,2]
[421298877,1777391444161,-464.0,0.00016986,2]
[421298880,1777391444171,-735.83,0.00016986,2]
[421298881,1777391444356,-190495.74314645,0.00017,2]
[421298882,1777391444367,-115433.08727564,0.00017,2]
[421298883,1777391444377,-1000.0,0.00017,2]
[421298884,1777391444386,-2273.51973811,0.00017,2]
[421298885,1777391444396,-151.0,0.00017015,2]
[421298886,1777391444405,-278.4240575,0.00017015,2]
[421298887,1777391444415,-324.5352399,0.00017015,2]
[421298888,1777391444424,-10367.48053488,0.000171,2]
[421298889,1777391444434,-2355.88202836,0.0001713,2]
[421298890,1777391444443,-1500.0,0.00017168,2]
[421298891,1777391444453,-1500.0,0.00017168,2]
[421298892,1777391444462,-161.61652312,0.00017168,2]
[421298893,1777391444472,-1500.0,0.00017168,2]
[421298894,1777391444481,-1500.0,0.00017168,2]
[421298895,1777391444491,-1500.0,0.00017168,2]
[421298896,1777391444500,-1500.0,0.00017168,2]
[421298897,1777391444509,-1500.0,0.00017168,2]
[421298898,1777391444519,-1500.0,0.00017168,2]
[421298899,1777391444528,-1372.63322227,0.00017168,2]
[421298900,1777391444538,-1500.0,0.00017168,2]
[421298901,1777391444547,-1500.0,0.00017168,2]
[421298902,1777391444556,-1016.14047877,0.00017168,2]
[421298903,1777391444566,-1500.0,0.00017168,2]
[421298904,1777391444575,-350.0,0.00017168,2]
[421298905,1777391444585,-1500.0,0.00017168,2]
[421298906,1777391444595,-1500.0,0.00017168,2]
[421298907,1777391444604,-691.53707284,0.00017168,2]
[421298908,1777391444613,-1500.0,0.00017168,2]
[421298909,1777391444623,-197.9673449,0.00017188,120]
[421298910,1777391444633,-2273.51973811,0.000172,2]
[421298911,1777391444642,-2000.0,0.00017228,2]
[421298912,1777391444652,-2000.0,0.00017228,2]
[421298913,1777391444661,-2000.0,0.00017228,2]
[421298914,1777391444671,-2000.0,0.00017228,2]
[421298915,1777391444680,-2000.0,0.00017228,2]
[421298916,1777391444690,-2000.0,0.00017228,2]
[421298917,1777391444700,-2000.0,0.00017228,2]
[421298918,1777391444709,-2000.0,0.00017228,2]
[421298919,1777391444719,-2000.0,0.00017228,2]
[421298920,1777391444729,-2000.0,0.00017228,2]
[421298921,1777391444738,-464.0,0.0001726,2]
[421298922,1777391444748,-326.58627929,0.00017288,3]
[421298923,1777391444758,-657.366,0.00017299,2]
[421298924,1777391444767,-2273.51973811,0.000173,2]
[421298925,1777391444777,-10367.48053488,0.000173,2]
[421298926,1777391444787,-1500.0,0.00017329,2]
[421298927,1777391444797,-1500.0,0.00017329,2]
[421298928,1777391444807,-1500.0,0.00017329,2]
[421298929,1777391444816,-1500.0,0.00017329,2]
[421298930,1777391444826,-1500.0,0.00017329,2]
[421298931,1777391444835,-1500.0,0.00017329,2]
[421298932,1777391444845,-1500.0,0.00017329,2]
[421298933,1777391444855,-1500.0,0.00017329,2]
[421298934,1777391444864,-1500.0,0.00017329,2]
[421298935,1777391444875,-1080.0,0.00017329,2]
[421298936,1777391444885,-10367.48053488,0.000174,2]
[421298937,1777391444894,-405.09870565,0.00017447,2]
[421298938,1777391444904,-1700.0,0.00017487,2]
[421298939,1777391444913,-1700.0,0.00017487,2]
[421298940,1777391444923,-501.17165,0.000175,60]
[421298941,1777391444933,-2273.51973811,0.000175,2]
[421298942,1777391444942,-464.0,0.00017534,2]
[421298943,1777391444952,-450.0,0.00017563,2]
[421298944,1777391444962,-450.0,0.00017563,2]
[421298945,1777391444972,-450.0,0.00017563,2]
[421298946,1777391444980,-450.0,0.00017563,2]
[421298947,1777391444990,-450.0,0.00017563,2]
[421298948,1777391445000,-450.0,0.00017563,2]
[421298949,1777391445010,-450.0,0.00017563,2]
[421298950,1777391445020,-440.0,0.00017563,2]
[421298951,1777391445029,-10367.48053488,0.000176,2]
[421298952,1777391445039,-308.68350414,0.00017605,60]
[421298953,1777391445049,-2000.0,0.00017664,7]
[421298954,1777391445059,-250.0,0.00017683,2]
[421298955,1777391445069,-250.0,0.00017683,2]
[421298956,1777391445078,-250.0,0.00017683,2]
[421298957,1777391445087,-250.0,0.00017683,2]
[421298958,1777391445096,-250.0,0.00017683,2]
[421298959,1777391445106,-250.0,0.00017683,2]
[421298960,1777391445116,-250.0,0.00017683,2]
[421298961,1777391445125,-250.0,0.00017683,2]
[421298962,1777391445135,-250.0,0.00017683,2]
[421298963,1777391445144,-161.0,0.00017683,2]
[421298964,1777391445154,-821.0,0.00017683,2]
[421298965,1777391445163,-168.31142056,0.00017704,120]
[421298966,1777391445173,-2000.0,0.00017716,2]
[421298967,1777391445182,-2000.0,0.00017716,2]
[421298968,1777391445192,-1500.0,0.00017716,2]
[421298969,1777391445202,-735.37063486,0.00017716,2]
[421298970,1777391445211,-2000.0,0.00017716,2]
[421298971,1777391445221,-2000.0,0.00017716,2]
[421298972,1777391445230,-2000.0,0.00017716,2]
[421298973,1777391445240,-1295.98350206,0.00017716,2]
[421298974,1777391445250,-2000.0,0.00017716,2]
[421298975,1777391445259,-2000.0,0.00017716,2]
[421298976,1777391445269,-2000.0,0.00017716,2]
[421298977,1777391445279,-450.0,0.00017716,2]
[421298978,1777391445288,-2000.0,0.00017716,2]
[421298979,1777391445299,-2000.0,0.00017716,2]
[421298980,1777391445308,-2000.0,0.00017716,2]
[421298981,1777391445318,-252.51017767,0.00017796,120]
[421298982,1777391445327,-10367.48053488,0.000178,2]
[421298983,1777391445337,-2000.0,0.00017801,7]
[421298984,1777391445346,-464.0,0.00017808,2]
[421298985,1777391445356,-168.72055831,0.00017821,60]
[421298986,1777391445365,-522.700904,0.00017849,2]
[421298987,1777391445376,-200.0,0.00017864,2]
[421298988,1777391445385,-200.0,0.00017864,2]
[421298989,1777391445395,-200.0,0.00017864,2]
[421298990,1777391445405,-200.0,0.00017864,2]
[421298991,1777391445415,-200.0,0.00017864,2]
[421298992,1777391445424,-200.0,0.00017864,2]